lending/lending_fUSD_20251107
["ID","MTS","AMOUNT","RATE_DAILY","PERIOD"]
[393368760,1762535707834,-156.31587506,0.00015756,2]
[393368761,1762535711479,-297.17698866,0.00015756,2]
[393368763,1762535715815,-300.85066371,0.00015756,2]
[393368764,1762535717756,-250.03845031,0.00015756,2]
[393368765,1762535719319,-293.28901501,0.00015756,2]
[393368766,1762535791079,-54.00888921,0.00015756,2]
[393368767,1762535791102,-101.82894955,0.00015756,2]
[393368769,1762536010664,536.6,0.00013699,2]
[393368793,1762536125741,500.0,0.00039026,120]
[393368794,1762536126352,500.0,0.00039026,120]
[393368795,1762536126991,500.0,0.00039026,120]
[393368796,1762536127605,500.0,0.00039026,120]
[393368797,1762536128232,500.0,0.00039026,120]
[393368798,1762536128860,500.0,0.00039026,120]
[393368799,1762536129494,500.0,0.00039026,120]
[393368800,1762536130130,500.0,0.00039026,120]
[393368801,1762536130739,500.0,0.00039026,120]
[393368802,1762536131376,500.0,0.00039026,120]
[393368803,1762536132003,500.0,0.00039026,120]
[393368804,1762536135495,-148.17105045,0.00015756,2]
[393368805,1762536135517,-63.709097,0.00015786,2]
[393368806,1762536135998,151.0,0.00039026,120]
[393368807,1762536136537,151.0,0.00039026,120]
[393368808,1762536137120,-91.8448793,0.00015786,2]
[393368809,1762536137142,-208.1551207,0.00015816,2]
[393368810,1762536137190,151.0,0.00039026,120]
[393368811,1762536138296,151.0,0.00039026,120]
[393368812,1762536138946,151.0,0.00039026,120]
[393368813,1762536139610,151.0,0.00039026,120]
[393368814,1762536140248,151.0,0.00039026,120]
[393368815,1762536140905,151.0,0.00039026,120]
[393368816,1762536141545,151.0,0.00039026,120]
[393368817,1762536142705,151.0,0.00039026,120]
[393368818,1762536195494,-41.8448793,0.00015816,2]
[393368819,1762536195517,-195.0,0.00015845,2]
[393368820,1762536195540,-17.62549504,0.00015875,2]
[393368821,1762536225480,-151.0,0.00015875,2]
[393368822,1762536225508,-207.1280816,0.00015875,2]
[393368823,1762536229344,-117.19378659,0.00015875,2]
[393368824,1762536229366,-142.9794533,0.00015875,2]
[393368825,1762536230457,-181.34241489,0.00015875,2]
[393368826,1762536230481,-99.31913755,0.00015875,2]
[393368827,1762536233987,237.64,8.075e-05,2]
[393368828,1762536234199,237.64,8.484e-05,2]
[393368829,1762536234437,237.64,8.892e-05,2]
[393368830,1762536234664,237.64,9.3e-05,2]
[393368831,1762536234871,107.36,9.709e-05,2]
[393368832,1762536234900,130.28,9.709e-05,2]
[393368833,1762536235338,237.64,0.00010117,2]
[393368834,1762536235591,237.64,0.00010526,2]
[393368835,1762536235957,237.64,0.00010934,2]
[393368836,1762536236189,237.64,0.00011342,2]
[393368837,1762536236408,237.64,0.00011751,2]
[393368838,1762536236604,237.64,0.00012159,2]
[393368839,1762536236816,237.64,0.00012567,2]
[393368840,1762536237042,237.64,0.00012976,2]
[393368841,1762536237325,237.64,0.00013384,2]
[393368842,1762536237536,237.64,0.00013792,2]
[393368843,1762536237755,237.64,0.00014201,2]
[393368844,1762536237961,237.64,0.00014609,2]
[393368845,1762536238209,237.64,0.00015017,2]
[393368846,1762536240364,-182.46659249,0.00015426,2]
[393368847,1762536243718,-55.17340751,0.00015426,2]
[393368848,1762536243741,-101.41659249,0.00015834,2]
[393368849,1762536324087,1000.0,0.00039079,120]
[393368850,1762536329891,500.0,0.00039079,120]
[393368851,1762536330661,500.0,0.00039079,120]
[393368852,1762536330912,500.0,0.00039079,120]
[393368853,1762536331207,500.0,0.00039079,120]
[393368854,1762536331487,500.0,0.00039079,120]
[393368855,1762536331790,500.0,0.00039079,120]
[393368856,1762536332020,500.0,0.00039079,120]
[393368857,1762536332281,500.0,0.00039079,120]
[393368858,1762536332539,500.0,0.00039079,120]
[393368859,1762536332825,357.28866025,0.00039079,120]
[393368860,1762536415288,5000.0,0.000162,5]
[393368861,1762536420571,-195.0,0.00015775,2]
[393368862,1762536422622,-74.16883687,0.00015775,2]
[393368863,1762536422645,-90.29607107,0.00015834,2]
[393368864,1762536473309,60730.88,0.00015,2]
[393368865,1762536473343,262000.0,0.00015,2]
[393368866,1762536473379,206989.01135015,0.00015,2]
[393368867,1762536481032,23696.40127087,0.00039082,30]
[393368870,1762536498550,5607.87592395,0.00039082,30]
[393368872,1762536503704,12474.5078273,0.00039082,30]
[393368873,1762536504043,7185.74519819,0.00039082,30]
[393368874,1762536507061,66013.3020512,0.00039082,30]
[393368876,1762536517558,5701.47663088,0.00039082,30]
[393368877,1762536518065,3776041.11648648,0.00039082,30]
[393368878,1762536518921,88310.24559835,0.00039082,30]
[393368879,1762536519287,6512.71433939,0.00039082,30]
[393368880,1762536519853,52110.95476298,0.00039082,30]
[393368883,1762536550989,-45.92733644,0.00015834,2]
[393368884,1762536551018,-195.0,0.00015844,2]
[393368885,1762536551045,-195.0,0.00015855,2]
[393368886,1762536551072,-270.26822349,0.00015875,2]
[393368887,1762536551098,-181.0,0.00016,2]
[393368888,1762536551128,-253.71788769,0.00016131,2]
[393368889,1762536551154,-253.71788767,0.00016182,2]
[393368890,1762536551181,-300.0,0.0001623,2]
[393368891,1762536551207,-1200.0,0.0001623,2]
[393368892,1762536551234,-300.0,0.0001623,2]
[393368893,1762536551261,-300.0,0.00016231,2]
[393368894,1762536551289,-300.0,0.00016231,2]
[393368895,1762536551320,-510.0,0.00016231,2]
[393368896,1762536551352,-224.74732942,0.00016231,2]
[393368897,1762536551582,-343.5309302,0.00015839,2]
[393368898,1762536551592,-597.72174038,0.00016231,2]
[393368899,1762536556926,-343.5309302,0.00016231,2]
[393368900,1762536556954,-151.0,0.00016231,2]
[393368901,1762536556986,-380.36001745,0.00016231,2]
[393368902,1762536557078,-8250.2281047,0.00016232,2]
[393368903,1762536563040,-671.84847477,0.00016232,2]
[393368904,1762536563072,-8656.31305046,0.00016232,2]
[393368905,1762536581343,-10000.01,0.00016146,2]
[393368906,1762536587369,-10000.01,0.00016146,2]
[393368933,1762536632108,-273.27685946,0.0001614,2]
[393368934,1762536632117,-300.0,0.00016145,2]
[393368935,1762536632127,-1200.0,0.00016145,2]
[393368936,1762536632137,-300.0,0.00016145,2]
[393368937,1762536632146,-550.0,0.00016145,2]
[393368938,1762536632156,-246.64277328,0.00016146,2]
[393368939,1762536632170,-506.914,0.00016146,2]
[393368940,1762536632186,-27700.59271945,0.00016146,2]
[393368941,1762536632197,-281.876957,0.00016146,2]
[393368942,1762536632218,-11056.6554868,0.00016146,2]
[393368943,1762536632228,-970.58787106,0.00016146,2]
[393368944,1762536632240,-691.23213421,0.00016146,2]
[393368945,1762536632274,-3960.31189362,0.00016146,2]
[393368946,1762536632285,-238857.85043091,0.00016146,2]
[393368947,1762536632297,-7168.80642237,0.00016146,2]
[393368948,1762536632306,-2143.8630523,0.0001615,2]
[393368949,1762536632315,-195.0,0.00016189,2]
[393368950,1762536632324,-4978.45645258,0.00016232,2]
[393368951,1762536632334,-211.02893932,0.00016232,2]
[393368952,1762536632343,-160.98037666,0.00016232,2]
[393368953,1762536632352,-279.795,0.00016232,2]
[393368954,1762536632362,-1000.0,0.00016232,2]
[393368955,1762536632371,-2500.0,0.00016232,2]
[393368956,1762536632381,-1035.81378294,0.0001624,2]
[393368957,1762536632391,-200.0,0.00016262,2]
[393368958,1762536632400,-280.15,0.00016322,2]
[393368959,1762536632412,-151.0,0.00016322,2]
[393368960,1762536632421,-151.0,0.00016322,2]
[393368961,1762536632430,-151.0,0.00016322,2]
[393368962,1762536632439,-151.0,0.00016322,2]
[393368964,1762536632448,-151.0,0.00016322,2]
[393368966,1762536632457,-151.0,0.00016322,2]
[393368967,1762536632467,-151.0,0.00016322,2]
[393368968,1762536632476,-151.0,0.00016322,2]
[393368969,1762536632485,-151.0,0.00016322,2]
[393368970,1762536632495,-151.0,0.00016322,2]
[393368971,1762536632504,-151.0,0.00016322,2]
[393368972,1762536632513,-151.0,0.00016322,2]
[393368973,1762536632523,-151.0,0.00016322,2]
[393368974,1762536632532,-151.0,0.00016322,2]
[393368975,1762536632541,-151.0,0.00016322,2]
[393368976,1762536632551,-151.0,0.00016322,2]
[393368977,1762536632560,-151.0,0.00016322,2]
[393368978,1762536632570,-151.0,0.00016322,2]
[393368979,1762536632579,-151.0,0.00016322,2]
[393368980,1762536632588,-151.0,0.00016322,2]
[393368981,1762536632599,-151.0,0.00016322,2]
[393368983,1762536632608,-151.0,0.00016322,2]
[393368984,1762536632618,-151.0,0.00016322,2]
[393368985,1762536632627,-151.0,0.00016322,2]
[393368986,1762536632636,-151.0,0.00016322,2]
[393368987,1762536632646,-151.0,0.00016322,2]
[393368988,1762536632655,-151.0,0.00016322,2]
[393368989,1762536632667,-151.0,0.00016322,2]
[393368990,1762536632676,-151.0,0.00016322,2]
[393368991,1762536632685,-151.0,0.00016322,2]
[393368992,1762536632694,-151.0,0.00016322,2]
[393368993,1762536632912,-151.0,0.00016322,2]
[393368994,1762536632921,-151.0,0.00016322,2]
[393368995,1762536632931,-151.0,0.00016322,2]
[393368996,1762536632940,-151.0,0.00016322,2]
[393368997,1762536632950,-151.0,0.00016322,2]
[393368998,1762536632960,-151.0,0.00016322,2]
[393368999,1762536632970,-229.89398899,0.00016322,2]
[393369000,1762536632980,-1000.0,0.0001633,2]
[393369001,1762536632989,-500.0,0.00016331,2]
[393369002,1762536633002,-500.0,0.00016331,2]
[393369003,1762536633011,-500.0,0.00016331,2]
[393369004,1762536633021,-500.0,0.00016331,2]
[393369005,1762536633031,-500.0,0.00016331,2]
[393369006,1762536633041,-500.0,0.00016331,2]
[393369007,1762536633050,-500.0,0.00016331,2]
[393369008,1762536633060,-500.0,0.00016331,2]
[393369009,1762536633070,-150.0,0.00016331,2]
[393369010,1762536633081,-150.0,0.00016331,2]
[393369011,1762536633090,-150.0,0.00016331,2]
[393369012,1762536633099,-500.0,0.00016331,2]
[393369013,1762536633109,-500.0,0.00016331,2]
[393369014,1762536633119,-150.0,0.00016331,2]
[393369015,1762536633129,-150.0,0.00016331,2]
[393369016,1762536633138,-500.0,0.00016331,2]
[393369017,1762536633148,-150.0,0.00016331,2]
[393369018,1762536633157,-150.0,0.00016331,2]
[393369019,1762536633171,-150.0,0.00016331,2]
[393369020,1762536633180,-500.0,0.00016331,2]
[393369021,1762536633189,-500.0,0.00016331,2]
[393369022,1762536633198,-437.07502368,0.00016331,2]
[393369023,1762536633208,-500.0,0.00016331,2]
[393369024,1762536633217,-500.0,0.00016331,2]
[393369025,1762536633226,-500.0,0.00016331,2]
[393369026,1762536633235,-500.0,0.00016331,2]
[393369027,1762536633245,-500.0,0.00016331,2]
[393369028,1762536633254,-500.0,0.00016331,2]
[393369029,1762536633263,-500.0,0.00016331,2]
[393369030,1762536633272,-500.0,0.00016331,2]
[393369031,1762536633281,-500.0,0.00016331,2]
[393369032,1762536633291,-292.29950893,0.00016331,2]
[393369033,1762536633300,-500.0,0.00016331,2]
[393369034,1762536633310,-500.0,0.00016331,2]
[393369035,1762536633318,-500.0,0.00016331,2]
[393369036,1762536633328,-500.0,0.00016331,2]
[393369037,1762536633338,-500.0,0.00016331,2]
[393369038,1762536633348,-500.0,0.00016331,2]
[393369039,1762536633358,-460.09867848,0.00016331,2]
[393369040,1762536633367,-500.0,0.00016331,2]
[393369041,1762536633377,-500.0,0.00016331,2]
[393369042,1762536633387,-500.0,0.00016331,2]
[393369043,1762536633397,-500.0,0.00016331,2]
[393369044,1762536633406,-335.91118937,0.00016331,2]
[393369045,1762536633418,-2555.38,0.00016331,2]
[393369046,1762536633427,-999.99,0.00016331,2]
[393369047,1762536633436,-1168.11,0.00016331,2]
[393369048,1762536633446,-150.99,0.00016331,2]
[393369049,1762536633455,-9999.99,0.00016331,2]
[393369050,1762536633464,-9999.99,0.00016331,2]
[393369051,1762536633474,-500.0,0.00016331,2]
[393369052,1762536633484,-162.51359959,0.00016331,2]
[393369053,1762536633493,-500.0,0.00016331,2]
[393369054,1762536633503,-500.0,0.00016331,2]
[393369055,1762536633512,-500.0,0.00016331,2]
[393369056,1762536633522,-500.0,0.00016331,2]
[393369057,1762536633532,-500.0,0.00016331,2]
[393369058,1762536633542,-500.0,0.00016331,2]
[393369059,1762536633552,-500.0,0.00016331,2]
[393369060,1762536633562,-500.0,0.00016331,2]
[393369061,1762536633571,-500.0,0.00016331,2]
[393369062,1762536633581,-500.0,0.00016331,2]
[393369063,1762536633591,-500.0,0.00016331,2]
[393369064,1762536633600,-500.0,0.00016331,2]
[393369065,1762536633610,-500.0,0.00016331,2]
[393369066,1762536633619,-500.0,0.00016331,2]
[393369067,1762536633628,-500.0,0.00016331,2]
[393369068,1762536633638,-500.0,0.00016331,2]
[393369069,1762536633648,-500.0,0.00016331,2]
[393369070,1762536633658,-591.80795999,0.00016331,2]
[393369071,1762536633673,-500.0,0.00016331,2]
[393369072,1762536633684,-500.0,0.00016331,2]
[393369073,1762536633694,-500.0,0.00016331,2]
[393369074,1762536633704,-500.0,0.00016331,2]
[393369075,1762536633714,-500.0,0.00016331,2]
[393369076,1762536633725,-500.0,0.00016331,2]
[393369077,1762536633735,-500.0,0.00016331,2]
[393369078,1762536633745,-500.0,0.00016331,2]
[393369079,1762536633755,-390.85366612,0.00016331,2]
[393369080,1762536633764,-500.0,0.00016331,2]
[393369081,1762536633773,-500.0,0.00016331,2]
[393369082,1762536633783,-500.0,0.00016331,2]
[393369083,1762536633792,-1000.0,0.00016332,2]
[393369084,1762536633802,-52278.88552268,0.00016332,2]
[393369085,1762536634006,-1525.545,0.00016332,2]
[393369093,1762536637922,-209.38705772,0.00016045,2]
[393369094,1762536637932,-193.23155827,0.00016331,2]
[393369095,1762536637943,-16.4478067,0.00016332,2]
[393369096,1762536637955,-366179.12167062,0.00016332,2]
[393369097,1762536637964,-344.1969,0.00016332,2]
[393369098,1762536637974,-150.99,0.00016332,2]
[393369099,1762536637983,-6487.18,0.00016332,2]
[393369100,1762536637994,-35748.31,0.00016332,2]
[393369101,1762536638003,-200.0,0.0001634,2]
[393369102,1762536638013,-500.0,0.00016373,2]
[393369103,1762536638023,-500.0,0.00016373,2]
[393369104,1762536638032,-500.0,0.00016373,2]
[393369105,1762536638042,-500.0,0.00016373,2]
[393369106,1762536638052,-648.2935781,0.00016373,2]
[393369107,1762536638061,-500.0,0.00016373,2]
[393369108,1762536638074,-500.0,0.00016373,2]
[393369109,1762536638084,-500.0,0.00016373,2]
[393369110,1762536638094,-500.0,0.00016373,2]
[393369111,1762536638103,-500.0,0.00016373,2]
[393369112,1762536638113,-500.0,0.00016373,2]
[393369113,1762536638122,-500.0,0.00016373,2]
[393369114,1762536638131,-500.0,0.00016373,2]
[393369115,1762536638141,-180.19074985,0.00016373,2]
[393369116,1762536638151,-500.0,0.00016373,2]
[393369117,1762536638160,-500.0,0.00016373,2]
[393369118,1762536638173,-500.0,0.00016373,2]
[393369119,1762536638182,-500.0,0.00016373,2]
[393369120,1762536638192,-500.0,0.00016373,2]
[393369121,1762536638201,-374.78377538,0.00016373,2]
[393369123,1762536638211,-500.0,0.00016373,2]
[393369124,1762536638220,-274.37432305,0.00016373,2]
[393369126,1762536638229,-500.0,0.00016373,2]
[393369128,1762536638239,-500.0,0.00016373,2]
[393369130,1762536638249,-500.0,0.00016373,2]
[393369132,1762536638259,-500.0,0.00016373,2]
[393369135,1762536638269,-625.33684407,0.00016373,2]
[393369138,1762536638282,-167.42370191,0.00016373,2]
[393369141,1762536638292,-150.0,0.00016373,2]
[393369143,1762536638302,-150.0,0.00016373,2]
[393369145,1762536638312,-500.0,0.00016373,2]
[393369147,1762536638321,-150.0,0.00016373,2]
[393369149,1762536638331,-535.0,0.00016373,2]
[393369151,1762536638341,-150.0,0.00016373,2]
[393369153,1762536638350,-495.0,0.00016373,2]
[393369155,1762536638361,-273.27685945,0.00016391,2]
[393369157,1762536638371,-4978.45645256,0.00016417,2]
[393369158,1762536638380,-220.41055721,0.00016438,2]
[393369160,1762536638390,-275.18543709,0.00016438,2]
[393369163,1762536638400,-500.0,0.00016438,2]
[393369165,1762536638410,-500.0,0.00016438,2]
[393369167,1762536638423,-231.3939285,0.00016438,2]
[393369169,1762536638432,-500.0,0.00016438,2]
[393369171,1762536638443,-500.0,0.00016438,2]
[393369173,1762536638452,-500.0,0.00016438,2]
[393369175,1762536638463,-411.67747315,0.00016438,2]
[393369177,1762536638473,-821.57,0.00016438,2]
[393369179,1762536638483,-234.06701824,0.00016468,2]
[393369181,1762536638492,-500.0,0.00016468,2]
[393369183,1762536638502,-450.0,0.00016468,2]
[393369185,1762536638511,-500.0,0.00016468,2]
[393369187,1762536638520,-150.0,0.00016468,2]
[393369189,1762536638530,-500.0,0.00016468,2]
[393369191,1762536638540,-500.0,0.00016468,2]
[393369193,1762536638550,-150.0,0.0001651,2]
[393369195,1762536638560,-500.0,0.0001651,2]
[393369197,1762536638570,-150.0,0.0001651,2]
[393369199,1762536638579,-535.0,0.0001651,2]
[393369201,1762536638590,-150.0,0.0001651,2]
[393369203,1762536638600,-495.0,0.0001651,2]
[393369205,1762536638610,-160.98037661,0.00016566,2]
[393369207,1762536638619,-500.0,0.00016575,2]
[393369209,1762536638629,-280.15,0.00016596,2]
[393369211,1762536638640,-500.0,0.00016602,2]
[393369213,1762536638650,-4978.45645256,0.00016603,2]
[393369216,1762536638664,-150.0,0.00016603,2]
[393369218,1762536638674,-500.0,0.00016605,2]
[393369220,1762536638684,-300.0,0.00016605,2]
[393369222,1762536638694,-500.0,0.00016605,2]
[393369224,1762536638704,-409.45484298,0.00016605,2]
[393369226,1762536638715,-154.5547493,0.00016647,2]
[393369228,1762536638725,-200.08208835,0.00016647,2]
[393369230,1762536638735,-150.0,0.00016647,2]
[393369232,1762536638745,-535.0,0.00016647,2]
[393369234,1762536638758,-213.28175054,0.00016647,2]
[393369236,1762536638769,-495.0,0.00016647,2]
[393369238,1762536638779,-500.0,0.00016712,2]
[393369240,1762536638790,-150.0,0.0001674,2]
[393369242,1762536638800,-403.4952759,0.00016746,2]
[393369244,1762536638810,-150.0,0.00016784,2]
[393369247,1762536638820,-535.0,0.00016784,2]
[393369249,1762536638830,-495.0,0.00016784,2]
[393369251,1762536638841,-4978.45645256,0.00016788,2]
[393369253,1762536638851,-440.66,0.00016795,2]
[393369255,1762536638860,-500.0,0.00016849,2]
[393369256,1762536638871,-280.15,0.0001687,2]
[393369259,1762536638880,-150.0,0.00016877,2]
[393369261,1762536638890,-160.98037661,0.00016899,2]
[393369263,1762536638900,-1000.0,0.00016921,2]
[393369265,1762536638909,-500.0,0.00016921,2]
[393369267,1762536638921,-170.18333266,0.00016921,2]
[393369269,1762536638931,-1000.0,0.00016921,2]
[393369271,1762536638942,-500.0,0.00016921,2]
[393369273,1762536638952,-1000.0,0.00016921,2]
[393369275,1762536638961,-1004.28126932,0.00016921,2]
[393369277,1762536638971,-1000.0,0.00016921,2]
[393369279,1762536638980,-1073.17708165,0.00016921,2]
[393369280,1762536638995,-500.0,0.00016921,2]
[393369283,1762536639005,-1007.57285581,0.00016921,2]
[393369285,1762536639015,-1000.0,0.00016921,2]
[393369286,1762536639025,-1000.0,0.00016921,2]
[393369288,1762536639035,-1000.0,0.00016921,2]
[393369290,1762536639045,-150.0,0.00016921,2]
[393369292,1762536639054,-535.0,0.00016921,2]
[393369294,1762536639066,-495.0,0.00016921,2]
[393369297,1762536639079,-150.0,0.00016921,2]
[393369299,1762536639088,-150.0,0.00016921,2]
[393369301,1762536639098,-150.0,0.00016921,2]
[393369302,1762536639108,-150.0,0.00016921,2]
[393369305,1762536639118,-500.0,0.00016921,2]
[393369307,1762536639127,-150.0,0.00016921,2]
[393369308,1762536639137,-150.0,0.00016921,2]
[393369310,1762536639147,-150.0,0.00016921,2]
[393369312,1762536639157,-150.0,0.00016921,2]
[393369314,1762536639170,-150.0,0.00016921,2]
[393369316,1762536639180,-150.0,0.00016921,2]
[393369318,1762536639190,-150.0,0.00016921,2]
[393369320,1762536639200,-150.0,0.00016921,2]
[393369322,1762536639210,-150.0,0.00016921,2]
[393369324,1762536639220,-250.0,0.00016921,2]
[393369326,1762536639229,-150.0,0.00016921,2]
[393369328,1762536639239,-500.0,0.00016921,2]
[393369330,1762536639248,-640.1,0.00016969,2]
[393369331,1762536639260,-260.63,0.00016969,2]
[393369332,1762536639269,-4978.45645256,0.00016973,2]
[393369333,1762536639279,-201.67991909,0.00016986,2]
[393369334,1762536639289,-151.0,0.00016987,2]
[393369335,1762536639299,-155098.6471951,0.0001699,2]
[393369336,1762536639308,-500.0,0.00017,2]
[393369337,1762536639317,-465.14690898,0.00017,2]
[393369338,1762536639327,-500.2462784,0.00017,2]
[393369339,1762536639336,-360.61508588,0.00017,2]
[393369340,1762536639346,-500.0,0.00017,2]
[393369341,1762536639355,-500.0,0.00017,2]
[393369342,1762536639364,-500.0935881,0.00017,2]
[393369343,1762536639374,-500.0,0.00017,2]
[393369344,1762536639383,-500.0,0.00017,2]
[393369345,1762536639392,-500.0,0.00017,2]
[393369346,1762536639402,-500.0,0.00017,2]
[393369347,1762536639415,-295.0,0.00017012,2]
[393369348,1762536639425,-150.0,0.00017014,2]
[393369349,1762536639435,-1035.81378292,0.00017022,2]
[393369350,1762536639445,-318.06,0.00017039,2]
[393369351,1762536639454,-250.0,0.00017058,2]
[393369352,1762536639466,-535.0,0.00017058,2]
[393369353,1762536639475,-495.0,0.00017058,2]
[393369354,1762536639485,-150.0,0.00017058,2]
[393369355,1762536639495,-150.0,0.00017058,2]
[393369356,1762536639505,-500.0,0.00017058,2]
[393369357,1762536639515,-150.0,0.00017058,2]
[393369358,1762536639525,-150.0,0.00017058,2]
[393369359,1762536639534,-150.0,0.00017058,2]
[393369360,1762536639544,-500.0,0.00017058,2]
[393369361,1762536639553,-250.0,0.000171,2]
[393369362,1762536639563,-280.15,0.00017144,2]
[393369363,1762536639573,-263.07061349,0.00017151,2]
[393369364,1762536639582,-372.0,0.00017153,2]
[393369365,1762536639592,-4978.45645256,0.00017159,2]
[393369366,1762536639602,-535.0,0.00017195,2]
[393369367,1762536639612,-495.0,0.00017195,2]
[393369368,1762536639623,-200.0,0.00017195,2]
[393369369,1762536639633,-200.0,0.00017195,2]
[393369370,1762536639643,-500.0,0.00017195,2]
[393369371,1762536639652,-200.0,0.00017195,2]
[393369372,1762536639662,-200.0,0.00017195,2]
[393369373,1762536639676,-150.0,0.00017195,2]
[393369374,1762536639686,-500.0,0.00017195,2]
[393369375,1762536639696,-453.0,0.00017228,2]
[393369376,1762536639706,-160.98037661,0.00017233,2]
[393369377,1762536639715,-453.0,0.0001724,2]
[393369378,1762536639725,-453.0,0.00017276,2]
[393369379,1762536639735,-453.0,0.00017287,2]
[393369380,1762536639745,-535.0,0.00017332,2]
[393369395,1762536639946,-495.0,0.00017332,2]
[393369397,1762536639957,-500.0,0.00017332,2]
[393369399,1762536639967,-500.0,0.00017332,2]
[393369401,1762536639978,-17578.38962989,0.00017344,2]
[393369403,1762536639990,-4978.45645256,0.00017344,2]
[393369405,1762536640003,-453.0,0.00017352,2]
[393369407,1762536640014,-250.0,0.00017353,2]
[393369409,1762536640024,-453.0,0.00017367,2]
[393369411,1762536640035,-195.0,0.00017418,2]
[393369412,1762536640044,-300.0,0.00017418,2]
[393369413,1762536640054,-300.0,0.00017418,2]
[393369414,1762536640063,-300.0,0.00017418,2]
[393369415,1762536640074,-252.09600473,0.00017418,2]
[393369416,1762536640083,-620.07204538,0.00017418,2]
[393369417,1762536640092,-195.0,0.00017418,2]
[393369418,1762536640102,-300.0,0.00017418,2]
[393369419,1762536640111,-197.18308,0.00017418,2]
[393369420,1762536640120,-300.0,0.00017418,2]
[393369421,1762536640129,-193.0,0.00017418,2]
[393369422,1762536640140,-2500.0,0.00017418,2]
[393369423,1762536640149,-195.0,0.00017418,2]
[393369424,1762536640158,-150.0,0.00017418,2]
[393369425,1762536640170,-200.0,0.00017418,2]
[393369426,1762536640180,-200.0,0.00017418,2]
[393369427,1762536640189,-200.0,0.00017418,2]
[393369428,1762536640198,-200.0,0.00017418,2]
[393369429,1762536640208,-201.61257308,0.00017418,2]
[393369430,1762536640217,-250.0,0.00017418,2]
[393369431,1762536640227,-280.16,0.00017418,2]
[393369432,1762536640237,-453.0,0.00017459,2]
[393369433,1762536640247,-1023.22717164,0.00017468,2]
[393369434,1762536640257,-500.0,0.00017468,2]
[393369435,1762536640266,-500.0,0.00017468,2]
[393369436,1762536640276,-361.27134346,0.00017468,2]
[393369437,1762536640286,-1000.0,0.00017468,2]
[393369438,1762536640296,-1500.0,0.00017468,2]
[393369439,1762536640305,-1500.0,0.00017468,2]
[393369440,1762536640315,-535.0,0.00017469,2]
[393369442,1762536640324,-495.0,0.00017469,2]
[393369444,1762536640334,-500.0,0.00017469,2]
[393369446,1762536640343,-500.0,0.00017469,2]
[393369448,1762536640352,-800.29344871,0.000175,2]
[393369449,1762536640361,-17578.38962989,0.00017529,2]
[393369450,1762536640371,-4978.45645256,0.00017529,2]
[393369451,1762536640381,-542.50588838,0.00017538,2]
[393369452,1762536640390,-1000.0,0.00017548,2]
[393369453,1762536640399,-1000.0,0.00017548,2]
[393369454,1762536640408,-1000.0,0.00017548,2]
[393369455,1762536640422,-1000.0,0.00017548,2]
[393369456,1762536640431,-500.0,0.00017548,2]
[393369458,1762536640441,-718.53533746,0.00017548,2]
[393369460,1762536640451,-1000.0,0.00017548,2]